Cogmind - Beta 17 @@@ ROGUE MODE // 2026.08.23 @ 14:44:37 Player: Lazz Result: Destroyed by Y-72 Warden with Railgun Performance ------------- Evolutions (9) 4500 Regions Visited (18) 3600 Robots Destroyed (202) 1010 Value Destroyed (6769) 6769 Prototype IDs (11) 220 Alien Tech Used (0) 0 Bonus (1570) 1570 TOTAL SCORE: 17669 Bonus ------- High Alert Combat Kills 570 Entered Garrisons 200 Registered with UFD 300 Met Optimus in HQ 500 Cogmind --------- Core Integrity 0/1600 Matter 144/300 Energy 99/100 System Corruption 1% Temperature Cool (9) Movement Core (50) Location -1/Garrison Parts ------- > --- POWER (2) -------- (None) > --- PROPULSION (7) --- Centrium Leg > --- UTILITY (13) ----- (None) > --- WEAPON (3) ------- (None) > --- INVENTORY (5) ---- Transmission Jammer Peak State ------------ > --- POWER ------------ Fusion Compressor Light Antimatter Reactor > --- PROPULSION ------- Improved Antigrav System Xenon Bombardment Thruster Field Propulsion Drive Field Propulsion Drive Field Propulsion Drive Field Propulsion Drive > --- UTILITY ---------- Advanced Heat Sink Advanced Heat Sink Advanced Coolant Injector Energy Well Improved Terrain Scanner Advanced Terrain Scan Processor Advanced Terrain Scan Processor Seismic Detector Advanced Transmission Jammer ECM Suite Advanced Reaction Control System Backup Plating III Backup Plating III > --- WEAPON ----------- Heavy Gauss Cannon Heavy Rocket Launcher Great Axe > --- INVENTORY -------- Centrium Leg Transmission Jammer Long-range Proton Cannon [Rating: 118] Favorites ----------- Power Deuterium Engine Engine Deuterium Engine Power Core Light Fission Core Reactor Antimatter Reactor Propulsion Advanced Treads Treads Advanced Treads Leg Flexi-carbon Leg Wheel Wheel Hover Unit Gravmag Array Flight Unit Field Propulsion Drive Utility High-capacity Storage Unit Device Seismic Detector Storage High-capacity Storage Unit Processor Targeting Computer Hackware System Shield Protection Reactive Plating Weapon Heavy Particle Cannon Energy Gun Heavy Beamcaster Energy Cannon Heavy Particle Cannon Ballistic Gun High-powered Shotgun Ballistic Cannon Hardcell Cannon Launcher Heavy Rocket Launcher Special Weapon Remote Datajack Impact Weapon Great Maul Slashing Weapon Great Axe Build | -11 -10 -10 -9 -8 -8 -8 -8 -6 -6 -6 -5 -4 -4 -4 -3 -2 -1 -1 ------- Run | Yrd Mat Min Mat Mat Sto Rec Scr Fac Low Low Fac Fac Was Fac Res Res Acc Gar Slots Evolved 18 | . . . 2 2 . . . 4 . . 2 2 . . 2 2 2 . Power 1 | . . . . . . . . 1 . . . . . . . . . . Propulsion 5 | . . . 1 1 . . . 1 . . . . . . 1 1 . . Utility 11 | . . . 1 . . . . 2 . . 2 2 . . 1 1 2 . Weapon 1 | . . . . 1 . . . . . . . . . . . . . . Parts Attached 186 | 8 1 4 23 23 12 . 5 13 . . 33 2 19 20 6 6 3 8 Power 22 | 1 . 1 3 2 2 . 1 2 . . 4 . 2 3 . 1 . . Engine 9 | 1 . 1 2 1 1 . . 1 . . 2 . . . . . . . Core 9 | . . . 1 1 1 . 1 1 . . 2 . . 1 . 1 . . Reactor 4 | . . . . . . . . . . . . . 2 2 . . . . Propulsion 57 | 2 . 1 9 7 6 . 2 3 . . 8 . 3 8 1 1 1 5 Treads 29 | 2 . 1 6 6 6 . 2 2 . . 1 . 3 . . . . . Leg 8 | . . . 1 . . . . 1 . . 3 . . 2 . . . 1 Wheel 4 | . . . 2 1 . . . . . . . . . 1 . . . . Hover 3 | . . . . . . . . . . . 2 . . . . . 1 . Flight 13 | . . . . . . . . . . . 2 . . 5 1 1 . 4 Utility 58 | 2 1 1 4 3 . . . 7 . . 13 1 10 5 5 4 2 . Device 31 | 1 . . 2 . . . . 3 . . 8 1 4 4 4 2 2 . Storage 5 | 1 1 . . . . . . 1 . . . . . 1 1 . . . Processor 8 | . . . 1 1 . . . 2 . . 2 . . . . 2 . . Hackware 1 | . . . . . . . . . . . 1 . . . . . . . Protection 13 | . . 1 1 2 . . . 1 . . 2 . 6 . . . . . Artifact . | . . . . . . . . . . . . . . . . . . . Weapon 49 | 3 . 1 7 11 4 . 2 1 . . 8 1 4 4 . . . 3 Energy Gun 13 | 1 . . 2 5 1 . . . . . . . 4 . . . . . Energy Cannon 11 | . . . 2 1 2 . 1 . . . 3 1 . 1 . . . . Ballistic Gun 12 | 2 . . 1 5 1 . . . . . . . . 1 . . . 2 Ballistic Cannon 5 | . . . 1 . . . . . . . 2 . . 1 . . . 1 Launcher 3 | . . 1 1 . . . . . . . 1 . . . . . . . Special Weapon 3 | . . . . . . . 1 1 . . 1 . . . . . . . Impact Weapon 1 | . . . . . . . . . . . 1 . . . . . . . Slashing Weapon 1 | . . . . . . . . . . . . . . 1 . . . . Piercing Weapon . | . . . . . . . . . . . . . . . . . . . Special Melee Weapon . | . . . . . . . . . . . . . . . . . . . Unidentified Prototypes 3 | . . . . 1 . . . . . . 2 . . . . . . . Corrupted Parts 1 | . . . . . 1 . . . . . . . . . . . . . System Corruption 1 | . . . . . 1 . . . . . . . . . . . . . Parts Lost 106 | . . 3 12 15 1 . . 4 . . 27 . 2 17 . . 1 24 Power 17 | . . 1 2 2 . . . . . . 6 . . 4 . . . 2 Propulsion 39 | . . 1 3 4 . . . 3 . . 10 . . 6 . . 1 11 Utility 26 | . . 1 3 2 . . . 1 . . 6 . 2 4 . . . 7 Weapon 24 | . . . 4 7 1 . . . . . 5 . . 3 . . . 4 Highest Loss Streak 19 | . . 1 4 11 1 . . 2 . . 7 . 1 6 . . 1 19 To Critical Strikes . | . . . . . . . . . . . . . . . . . . . Average Backups 13 | 1 4 8 16 18 17 18 18 18 19 19 13 2 4 3 3 4 5 3 Power . | . . . . . . 1 1 1 1 1 . . . . . . . . Propulsion . | . . . 2 1 1 . . . 1 1 . . . . 1 . 1 . Utility 7 | . 2 3 6 11 12 12 10 10 10 10 6 . . . . 1 1 1 Weapon 4 | 1 2 4 7 5 3 5 5 5 6 6 5 2 2 2 2 2 3 1 Tool/Special . | . . . . . . . . . . . . . . . . . . . Unused Backups 26 | . . . 2 6 2 . 9 1 . . 6 . . . . . . . Power . | . . . . . . . . . . . . . . . . . . . Propulsion 2 | . . . 2 . . . . . . . . . . . . . . . Utility 17 | . . . . 6 2 . 6 1 . . 2 . . . . . . . Weapon 7 | . . . . . . . 3 . . . 4 . . . . . . . Tool/Special . | . . . . . . . . . . . . . . . . . . . Average Slot Usage (%) 87 | . 100 98 91 95 90 100 100 99 100 100 86 7 50 52 65 77 86 55 Engine 3 | . 14 13 5 7 3 . . 6 6 6 3 . . . . . . . Core 4 | . . . 5 . 1 9 9 6 6 6 4 . . . . 2 4 2 Treads 24 | . 28 27 20 35 32 36 36 32 33 33 18 . 9 5 . . . . Leg 1 | . . . 4 . . . . . . . 2 . . 1 . . . . Flight 1 | . . . . . . . . . . . . . . 2 28 30 25 13 Device 9 | . 14 8 3 4 . . . 12 13 13 16 3 9 19 13 23 27 19 Storage 6 | . 14 14 11 9 9 9 9 6 6 6 4 . . 1 3 4 4 2 Processor 8 | . . . 9 9 18 18 18 13 6 6 6 . . . . . 8 5 Protection 3 | . . 5 5 3 . . . . 6 6 5 . 11 2 9 8 8 3 Energy Gun 2 | . 14 14 6 9 6 . . . . . . . 11 2 . . . . Energy Cannon 11 | . . . 8 10 11 18 22 17 20 20 10 3 . 3 . . . . Ballistic Gun 2 | . 14 11 2 4 6 9 4 . . . . . . 1 . . . . Peak Build Rating 118 | 7 7 9 19 29 35 35 40 58 56 56 77 8 108 110 78 106 117 118 Average Rating 46 | 5 7 7 13 22 30 35 37 54 55 56 65 7 88 73 72 93 108 70 On Entrance 42 | . 7 7 9 17 16 35 35 40 55 56 56 1 8 108 56 76 106 117 Avg Prop Armor Cover (%) 10 | . . . 18 18 18 . . 3 . . 7 . 4 14 . . 3 12 Naked Turns 95 | . . . . . . . . . . . 6 28 . 43 . . . 18 Heaviest Build 139 | 15 50 53 56 64 62 60 72 90 90 90 108 10 139 128 30 39 41 60 Greatest Support 140 | 40 40 40 60 84 88 88 88 120 120 120 120 3 140 140 42 49 49 42 Greatest Overweight (x) 17 | . 1 1 17 2 3 . . 1 . . 3 3 1 6 . . . 2 Average Overweight (x) . | . . 1 2 . . . . . . . . . . . . . . . Largest Inventory Capacity 20 | 8 20 20 20 20 20 20 20 20 20 20 20 5 5 20 5 5 5 5 Average Capacity 16 | 7 14 20 20 20 20 20 20 20 20 20 17 5 5 8 5 5 5 5 Most Carried 20 | 4 5 17 20 20 20 18 20 20 20 20 20 5 5 5 4 5 5 5 Average Carried 14 | 1 4 8 15 18 17 18 18 19 20 20 14 3 4 4 3 4 5 3 Final Capacity 20 | 8 20 20 20 20 20 20 20 20 20 20 5 5 5 5 5 5 5 5 Final Carried 20 | 4 5 16 19 16 18 18 20 20 20 20 4 4 5 4 4 5 5 1 Class Distribution -------------------- 48% | Gunner 16% | Mutant 11% | Scavenger-Mutant 8% | Tank 7% | Scavenger-Tank 4% | Scavenger-Gunner Dominant Class ---------------- Mutant | -10/Materials Mutant | -10/Mines Scavenger-Mutant | -9/Materials Scavenger-Gunner | -8/Materials Gunner | -8/Storage Gunner | -8/Recycling Gunner | -8/Scraptown Gunner | -6/Factory Gunner | -6/Lower Caves Gunner | -6/Lower Caves Tank | -5/Factory Mutant | -4/Factory Scavenger-Tank | -4/Waste Scavenger-Tank | -4/Factory Sprinter | -3/Research Infiltrator-Sprinter | -2/Research Infiltrator-Sprinter | -1/Access Mutant | -1/Garrison Resources | -11 -10 -10 -9 -8 -8 -8 -8 -6 -6 -6 -5 -4 -4 -4 -3 -2 -1 -1 ----------- Run | Yrd Mat Min Mat Mat Sto Rec Scr Fac Low Low Fac Fac Was Fac Res Res Acc Gar Matter Collected 3818 | 319 . 59 518 323 194 76 76 219 59 15 912 . 290 277 278 10 70 123 Remotely . | . . . . . . . . . . . . . . . . . . . Salvage Created 7383 | 209 . 258 1372 1471 632 109 . 461 78 . 1725 120 189 383 155 10 70 141 Parts 407 | 16 . 16 82 98 33 4 . 16 4 . 99 1 . 18 4 4 5 7 Haulers Intercepted 6 | . . . 2 3 . . . 1 . . . . . . . . . . Recyclers Shooed 1 | . . . . . . . . . . . . 1 . . . . . . Parts Field Recycled . | . . . . . . . . . . . . . . . . . . . Retrieved Matter . | . . . . . . . . . . . . . . . . . . . Parts Self-Destructed 4 | . . . . . . . . . 4 . . . . . . . . . Prevented . | . . . . . . . . . . . . . . . . . . . Parts Restored 1 | . . . . . . . . . . . . . . 1 . . . . Broken 1 | . . . . . . . . . . . . . . 1 . . . . Kills | -11 -10 -10 -9 -8 -8 -8 -8 -6 -6 -6 -5 -4 -4 -4 -3 -2 -1 -1 ------- Run | Yrd Mat Min Mat Mat Sto Rec Scr Fac Low Low Fac Fac Was Fac Res Res Acc Gar Combat Hostiles Destroyed 142 | . . 10 34 26 13 2 . 8 3 . 28 . 1 9 . . 1 7 Melee 1 | . . . . . . . . . . . . . . . . . 1 . Guns 53 | . . 6 17 19 7 . . . . . . . 1 2 . . . 1 Cannons 55 | . . . 8 6 5 1 . 7 3 . 17 . . 7 . . . 1 AOE 29 | . . 4 8 1 1 . . . . . 10 . . . . . . 5 Classes Destroyed 19 | 3 . 3 4 4 1 . . 1 . . 2 . 1 . . . . . Worker 16 | 2 . . 4 2 1 . . 1 . . 3 . . 1 2 . . . Builder 12 | . . . 1 1 . . . . . . 10 . . . . . . . Tunneler 7 | 3 . . . . . . . . . . 2 . . . 1 1 . . Hauler 6 | . . . 2 3 . . . 1 . . . . . . . . . . Recycler 8 | 1 . . 1 . 1 . . . . . 3 1 . . 1 . . . Mechanic 3 | . . . . 1 . . . . . . 1 . . 1 . . . . Operator 2 | . . . . . 1 . . . . . 1 . . . . . . . Watcher 6 | . . . 1 1 . . . 1 . . 2 . . 1 . . . . Swarmer 39 | . . 3 10 6 3 . . 3 3 . . . . 4 . . . 7 Cutter 1 | . . . . . . . . . . . 1 . . . . . . . Grunt 47 | . . 5 18 9 5 . . 1 . . 9 . . . . . . . Brawler 2 | . . . 2 . . . . . . . . . . . . . . . Duelist 2 | . . . . 1 . . . . . . 1 . . . . . . . Sentry 25 | . . 2 4 7 5 2 . 1 . . 3 . . 1 . . . . Specialist 6 | . . . . 2 . . . . . . 4 . . . . . . . Hunter 2 | . . . . . . . . . . . 2 . . . . . . . Programmer 15 | . . . . . . . . 3 . . 8 . . 3 . . 1 . Heavy 2 | . . . . 1 . . . . . . . . . 1 . . . . Compactor 1 | . . . . . . . . . . . . . 1 . . . . . Best Kill Streak 11 | 3 . 3 10 11 9 1 . 4 3 . 9 1 1 4 2 1 1 6 Combat Bots Only 8 | . . 3 7 8 7 1 . 4 3 . 4 . 1 4 . . 1 6 Max Kills in Single Turn 5 | 1 . 2 4 3 2 1 . 2 1 . 5 1 1 1 1 1 1 2 Gunslinging 1 | . . 1 1 1 . . . . . . . . . . . . . . Exploded 4 | . . 1 4 1 1 . . . . . 2 . . . . . . 2 Melee 1 | . . . . . . . . . . . . . . . . . 1 . Uniques/NPCs Destroyed . | . . . . . . . . . . . . . . . . . . . Combat | -11 -10 -10 -9 -8 -8 -8 -8 -6 -6 -6 -5 -4 -4 -4 -3 -2 -1 -1 -------- Run | Yrd Mat Min Mat Mat Sto Rec Scr Fac Low Low Fac Fac Was Fac Res Res Acc Gar Hostile Shots Fired 1281 | . . 53 169 172 56 . . 101 13 . 252 . 12 154 8 18 8 265 Missed 394 | . . 14 51 37 22 . . 27 4 . 69 . . 45 5 11 3 106 Hits 887 | . . 39 118 135 34 . . 74 9 . 183 . 12 109 3 7 5 159 Melee 18 | . . . 2 1 . . . . . . 2 . 12 1 . . . . Projectile 869 | . . 39 116 134 34 . . 74 9 . 181 . . 108 3 7 5 159 AOE 1 | . . . . . . . . . . . 1 . . . . . . . Critical Strikes 47 | . . . 2 8 2 . . . . . 9 . 7 12 . . 1 6 Part Disruptions 6 | . . . . . . . . . . . 6 . . . . . . . Damage Taken 17816 | . . 543 1379 2551 544 . . 1236 99 . 3890 . 637 3339 76 107 118 3297 Core 3598 | . . 56 206 400 27 . . 130 25 . 418 . . 640 58 19 49 1570 Absorbed by Shields 510 | . . . . . . . . . . . 388 . . 38 . . . 84 Reduced by Siege Mode 54 | . . . . . . . . . . . . . . 54 . . . . Redirected to Shielding 51 | . . . 51 . . . . . . . . . . . . . . . Ignored by Resistances 256 | . . . . . . . . . 30 . 23 . . 203 . . . . Core Remaining (%) 69 | 100 . 77 48 . . . 22 . . 81 58 . . 44 95 98 . . Volleys Fired 401 | 13 . 22 76 66 29 3 . 48 3 . 80 3 7 41 . . . 10 Largest 3 | 2 . 2 2 3 3 3 . 3 3 . 3 1 3 3 . . . 2 Hottest 243 | 70 . 80 136 204 175 175 . 240 240 . 211 81 243 224 . . . 90 Shots Fired 730 | 26 . 37 142 142 47 7 . 82 8 . 122 3 14 89 . . . 11 Gun 304 | 26 . 32 75 95 27 2 . . . . . . 14 30 . . . 3 Cannon 391 | . . . 62 47 20 5 . 80 8 . 103 3 . 59 . . . 4 Launcher 32 | . . 5 5 . . . . . . . 18 . . . . . . 4 Special 3 | . . . . . . . . 2 . . 1 . . . . . . . Kinetic 207 | 13 . 12 44 40 15 2 . . . . 21 . . 54 . . . 6 Thermal 387 | 13 . 20 93 47 20 5 . 80 8 . 69 . 14 18 . . . . Explosive 32 | . . 5 5 . . . . . . . 18 . . . . . . 4 Electromagnetic 101 | . . . . 55 12 . . . . . 13 3 . 17 . . . 1 Robot Hit Streak 23 | 4 . 12 23 16 7 2 . 20 21 . 12 15 11 16 . . . 8 Robot Miss Streak 6 | 2 . 1 2 6 3 . . 4 2 . 3 . 1 2 . . . 2 Penetration Max 1 | . . . . 1 . . . . . . 1 . . 1 . . . . Secondary Targets 8 | . . 1 3 4 . . . . . . . . . . . . . . Max Gunslinging Chain 1 | . . 1 1 1 . . . . . . . . . . . . . . Shots Hit Robots 504 | 17 . 29 100 99 34 2 . 33 3 . 86 3 11 69 6 1 3 8 Core Hits 312 | 7 . 19 54 62 24 1 . 12 3 . 84 1 2 21 3 . 2 17 Critical Kills 4 | . . . 2 . . 1 . 1 . . . . . . . . . . Critical Parts Destroyed 1 | . . . . . . . . . . . 1 . . . . . . . Critical Strikes 21 | . . 4 4 1 . 1 . 1 . . 6 . . 3 . . . 1 Burn 7 | . . 4 2 . . . . . . . . . . 1 . . . . Meltdown 3 | . . . 1 . . 1 . 1 . . . . . . . . . . Destroy 1 | . . . 1 . . . . . . . . . . . . . . . Blast 6 | . . . . . . . . . . . 3 . . 2 . . . 1 Corrupt 2 | . . . . 1 . . . . . . 1 . . . . . . . Smash 2 | . . . . . . . . . . . 2 . . . . . . . Melee Attacks 35 | . . . . . . . . . . . 7 . . 5 11 7 5 . Impact 7 | . . . . . . . . . . . 7 . . . . . . . Slashing 28 | . . . . . . . . . . . . . . 5 11 7 5 . Piercing . | . . . . . . . . . . . . . . . . . . . Sneak Attacks 8 | . . . . . . . . . . . 1 . . 1 5 1 . . Combat Hostiles . | . . . . . . . . . . . . . . . . . . . Follow-up Attacks . | . . . . . . . . . . . . . . . . . . . Damage Inflicted 18847 | 228 . 738 2247 2203 902 54 . 1055 83 . 6902 106 275 2549 456 68 125 856 Guns 4150 | 228 . 366 831 1337 393 . . . . . . . 275 654 . . . 66 Cannons 8302 | . . . 957 576 354 54 . 1018 83 . 3298 106 . 1716 . . . 140 Explosions 5444 | . . 372 459 290 155 . . 37 . . 3400 . . 82 . . . 649 Melee 950 | . . . . . . . . . . . 204 . . 97 456 68 125 . Ramming 1 | . . . . . . . . . . . . . . . . . . 1 Kinetic 4556 | 91 . 118 499 699 246 . . . . . 1050 . . 1675 . . . 178 Thermal 7699 | 137 . 248 1289 866 509 54 . 1055 83 . 2767 . 275 416 . . . . Explosive 4087 | . . 372 459 . . . . . . . 2607 . . . . . . 649 Electromagnetic 1554 | . . . . 638 147 . . . . . 274 106 . 361 . . . 28 Impact 204 | . . . . . . . . . . . 204 . . . . . . . Slashing 746 | . . . . . . . . . . . . . . 97 456 68 125 . Piercing . | . . . . . . . . . . . . . . . . . . . Highest Corruption 12 | . . . 3 2 3 3 . 12 12 12 7 . . 3 . . 1 1 Average Corruption 4 | . . . 1 1 2 3 . 4 12 12 4 . . 2 . . 1 1 Corruption Purged . | . . . . . . . . . . . . . . . . . . . Corruption Blocked . | . . . . . . . . . . . . . . . . . . . Effects 150 | . . . 10 6 9 8 . 30 32 4 39 . . 11 . . 1 . Message Errors 42 | . . . 2 3 1 2 . 11 9 1 8 . . 5 . . . . Matter Fused 39 | . . . 3 1 3 2 . 9 7 3 11 . . . . . . . Heat Flow Errors 18 | . . . 2 1 1 1 . 2 5 . 4 . . 1 . . 1 . Energy Discharges 10 | . . . 1 . 1 . . . 3 . 4 . . 1 . . . . Parts Rejected 2 | . . . 1 . . . . . . . 1 . . . . . . . Parts Fused 1 | . . . . . 1 . . . . . . . . . . . . . Data Loss (minor) 24 | . . . 1 . 1 3 . 5 5 . 7 . . 2 . . . . Data Loss (major) 4 | . . . . 1 . . . . . . 2 . . 1 . . . . Misfires 2 | . . . . . 1 . . . . . . . . 1 . . . . Alerts 3 | . . . . . . . . . 2 . 1 . . . . . . . Weapon Failures 5 | . . . . . . . . 3 1 . 1 . . . . . . . Overload Shots . | . . . . . . . . . . . . . . . . . . . Overflow Damage 862 | . . 3 17 7 . . . 38 . . 431 . . 191 139 28 . 8 Projectiles 313 | . . . 11 . . . . 38 . . 137 . . 127 . . . . Explosions 226 | . . 3 6 7 . . . . . . 195 . . 7 . . . 8 Melee 323 | . . . . . . . . . . . 99 . . 57 139 28 . . Knockbacks 29 | . . . 5 . . . . . . . 11 . . 12 . . . 1 Impact 1 | . . . . . . . . . . . 1 . . . . . . . Kinetic 23 | . . . 4 . . . . . . . 8 . . 10 . . . 1 Secondary 5 | . . . 1 . . . . . . . 2 . . 2 . . . . Self-Inflicted Damage 821 | . . 75 . 51 46 . . . . . 362 . . 251 . . . 36 Shots 21 | . . 4 . 1 1 . . . . . 7 . . 6 . . . 2 Rammed . | . . . . . . . . . . . . . . . . . . . Targets Rammed 1 | . . . . . . . . . . . . . . . . . . 1 Kicked 1 | . . . . . . . . . . . . . . . . . . 1 Crushed . | . . . . . . . . . . . . . . . . . . . Highest Temperature 520 | 45 . 159 347 351 337 179 . 285 199 . 279 . 520 180 10 199 189 1 Average Temperature 93 | 15 . 70 81 104 90 64 . 102 100 . 70 . 204 41 1 64 87 1 Received Heat Transfer 3031 | . . 174 438 900 216 . . 69 . . 744 . . 238 18 9 . 225 Effects 14 | . . . . 1 5 . . . . . . . 8 . . . . . Shutdowns 3 | . . . . . . . . . . . . . 3 . . . . . Interference 8 | . . . . . 5 . . . . . . . 3 . . . . . Short Circuit 2 | . . . . 1 . . . . . . . . 1 . . . . . Damage (minor) 1 | . . . . . . . . . . . . . 1 . . . . . Siege Activations 2 | . . . . . . . . . . . . . . 2 . . . . Total Turns 53 | . . . . . . . . . . . . . . 53 . . . . Longest Duration 30 | . . . . . . . . . . . . . . 30 . . . . Martial Activations . | . . . . . . . . . . . . . . . . . . . Shielding Activations . | . . . . . . . . . . . . . . . . . . . Robots Disrupted 3 | . . . . 2 . . . . . . 1 . . . . . . . Combat Hostiles 2 | . . . . 1 . . . . . . 1 . . . . . . . Robots Corrupted 4 | . . . . 1 . . . . . . 2 1 . . . . . . Combat Hostiles 1 | . . . . . . . . . . . 1 . . . . . . . Parts Fried 9 | . . . . 2 . . . . . . 4 3 . . . . . . Impact Corruptions 4 | . . . . . . . . . . . 3 . . 1 . . . . Robots Melted 4 | . . . 1 . . 1 . 2 . . . . . . . . . . Combat Hostiles 3 | . . . 1 . . 1 . 1 . . . . . . . . . . Parts Melted 26 | . . 2 6 1 1 2 . 9 . . 5 . . . . . . . Heat Transferred 10342 | 407 . 999 2849 1286 618 74 . 1512 124 . 1400 . 444 629 . . . . Parts Sabotaged . | . . . . . . . . . . . . . . . . . . . Parts Stolen . | . . . . . . . . . . . . . . . . . . . Parts Stripped . | . . . . . . . . . . . . . . . . . . . Power Chain Reactions 7 | . . . . 2 1 . . . . . 3 . . 1 . . . . Alert | -11 -10 -10 -9 -8 -8 -8 -8 -6 -6 -6 -5 -4 -4 -4 -3 -2 -1 -1 ------- Run | Yrd Mat Min Mat Mat Sto Rec Scr Fac Low Low Fac Fac Was Fac Res Res Acc Gar Maximum Alert Level 4 | . . . 2 1 1 . . 1 . . 4 2 . 1 . . . 1 Low Security (%) 73 | 100 100 100 20 73 35 100 . 96 . . 61 . 100 94 100 100 100 98 Level 1 12 | . . . 48 26 64 . . 3 . . 2 . . 5 . . . 1 Level 2 7 | . . . 30 . . . . . . . 8 100 . . . . . . Level 3 5 | . . . . . . . . . . . 25 . . . . . . . Level 4 . | . . . . . . . . . . . 2 . . . . . . . Level 5 . | . . . . . . . . . . . . . . . . . . . High Security . | . . . . . . . . . . . . . . . . . . . Max Security . | . . . . . . . . . . . . . . . . . . . Peak Influence 1105 | 10 7 138 491 357 387 132 . 217 . . 1105 512 142 220 110 39 30 226 Initial 512 | . 3 . 53 186 143 127 . . . . . 512 142 . 105 39 8 29 Average 179 | 2 1 19 286 176 261 48 . 55 . . 353 457 32 84 89 23 15 129 Influence Increases 5876 | 30 19 288 968 830 410 48 . 392 70 . 1555 5 . 686 56 35 47 437 Destroy 0b10 Robot/C 2820 | . . 200 680 520 260 40 . 160 60 . 560 . . 180 . . 20 140 Destroy 0b10 Robot/NC 300 | 30 . . 45 40 15 . . 15 . . 110 5 . 15 20 5 . . Destroy Leader 694 | . . 30 156 148 70 . . 54 10 . 154 . . 52 . . 10 10 Successful Hack 82 | . 19 . 9 2 12 5 . 5 . . . . . 16 . . 14 . Disable Machine 510 | . . 15 15 15 15 . . 105 . . 180 . . 150 . 15 . . Destroy Structure 795 | . . 28 33 15 8 3 . 53 . . 446 . . 108 6 15 3 77 Partial Spotted 45 | . . . 15 . . . . . . . . . . . 30 . . . Lose Combat Pursuer 630 | . . 15 15 90 30 . . . . . 105 . . 165 . . . 210 Influence Decreases 5650 | 25 24 150 663 932 422 377 . 284 178 . 508 645 407 484 187 92 24 248 Entered New Map 1728 | . 2 . 85 257 198 202 . . 41 . . 535 265 . 97 32 6 8 Time Decay 2694 | 25 22 120 458 333 214 175 . 244 137 . 238 110 142 316 90 60 10 . Lost Part 1006 | . . 30 120 150 10 . . 40 . . 240 . . 168 . . 8 240 Lost Ally 40 | . . . . 10 . . . . . . 30 . . . . . . . Purge Threat 182 | . . . . 182 . . . . . . . . . . . . . . Squads Dispatched 38 | . . 1 5 3 . . . 5 . . 16 . . 4 2 2 . . Investigation 11 | . . 1 2 . . . . 1 . . 4 . . 2 . 1 . . Extermination 12 | . . . . . . . . 3 . . 5 . . 2 1 1 . . Reinforcement 14 | . . . 2 3 . . . 1 . . 7 . . . 1 . . . Assault 1 | . . . 1 . . . . . . . . . . . . . . . Garrison . | . . . . . . . . . . . . . . . . . . . Intercept . | . . . . . . . . . . . . . . . . . . . Searches Triggered . | . . . . . . . . . . . . . . . . . . . Construction Impeded 3 | . . . . 1 . . . . . . 2 . . . . . . . Haulers Reinforced 2 | . . . . . . . . 1 . . 1 . . . . . . . Active Scanning Responses . | . . . . . . . . . . . . . . . . . . . Cargo Convoy Interrupts . | . . . . . . . . . . . . . . . . . . . Stealth | -11 -10 -10 -9 -8 -8 -8 -8 -6 -6 -6 -5 -4 -4 -4 -3 -2 -1 -1 --------- Run | Yrd Mat Min Mat Mat Sto Rec Scr Fac Low Low Fac Fac Was Fac Res Res Acc Gar Distress Signals 7 | . . . 1 1 2 . . . . . 3 . . . . . . . Communications Jammed 59 | . . . . . . . . . . . . . . 48 3 8 . . Distress Signals 45 | . . . . . . . . . . . . . . 34 3 8 . . Times Spotted 263 | . . 11 43 35 16 1 . 12 3 . 45 . 1 33 7 12 5 39 Peak Tracking Total 14 | . . 3 7 7 8 . . 4 3 . 6 . 1 9 4 8 5 14 Tactical Retreats 27 | . . 1 1 5 2 . . . . . 4 . . 5 . 1 . 8 ECM-based Alert Blocks 9 | . . . . . . . . . . . . . . . . 3 . 6 Traps | -11 -10 -10 -9 -8 -8 -8 -8 -6 -6 -6 -5 -4 -4 -4 -3 -2 -1 -1 ------- Run | Yrd Mat Min Mat Mat Sto Rec Scr Fac Low Low Fac Fac Was Fac Res Res Acc Gar Traps Triggered 11 | . . . 1 2 . . . 1 . . 1 1 . 1 . . . 4 Indirectly . | . . . . . . . . . . . . . . . . . . . Trap Hack Attempts . | . . . . . . . . . . . . . . . . . . . Triggered . | . . . . . . . . . . . . . . . . . . . Disarmed . | . . . . . . . . . . . . . . . . . . . Reprogrammed . | . . . . . . . . . . . . . . . . . . . Reused 1 | . . . . . . . . . . . . . 1 . . . . . Traps Extracted . | . . . . . . . . . . . . . . . . . . . Installed 1 | . . . . . . . . . . . . . 1 . . . . . Triggered . | . . . . . . . . . . . . . . . . . . . Most Traps Carried 1 | . . . . . . . 1 1 1 1 1 1 1 . . . . . Machines | -11 -10 -10 -9 -8 -8 -8 -8 -6 -6 -6 -5 -4 -4 -4 -3 -2 -1 -1 ---------- Run | Yrd Mat Min Mat Mat Sto Rec Scr Fac Low Low Fac Fac Was Fac Res Res Acc Gar Machines Disabled 34 | . . 1 1 1 1 . . 7 . . 12 . . 10 . 1 . . Max in Single Turn 6 | . . 1 1 1 1 . . 6 . . 5 . . 6 . 1 . . Machines Repaired . | . . . . . . . . . . . . . . . . . . . Machines Dismantled . | . . . . . . . . . . . . . . . . . . . Machines Sabotaged . | . . . . . . . . . . . . . . . . . . . Overloaded Fab Kills . | . . . . . . . . . . . . . . . . . . . Hacking | -11 -10 -10 -9 -8 -8 -8 -8 -6 -6 -6 -5 -4 -4 -4 -3 -2 -1 -1 --------- Run | Yrd Mat Min Mat Mat Sto Rec Scr Fac Low Low Fac Fac Was Fac Res Res Acc Gar Machines Accessed 41 | . 3 1 3 3 5 4 1 4 2 . 5 1 . 3 3 1 2 . Terminals 24 | . 3 1 2 2 5 4 . 1 . . 2 . . 1 2 1 . . Fabricators 1 | . . . . . . . . 1 . . . . . . . . . . Repair Stations 2 | . . . . . . . . . . . . 1 . 1 . . . . Recycling Units 6 | . . . . . . . . 1 . . 3 . . 1 . . 1 . Scanalyzers 4 | . . . 1 1 . . . 1 . . . . . . 1 . . . Garrison Access 1 | . . . . . . . . . . . . . . . . . 1 . Total Hacks 81 | . 8 2 6 6 8 8 1 10 6 . 8 2 . 7 5 2 2 . Successful 36 | . 5 . 2 4 4 5 1 4 6 . 3 . . 1 . . 1 . Failed 44 | . 3 2 4 1 4 3 . 6 . . 5 2 . 6 5 2 1 . Catastrophic 11 | . . . 1 . 1 1 . . . . 1 1 . 2 1 2 1 . Database Lockouts 1 | . . . . 1 . . . . . . . . . . . . . . Manual 21 | . 4 3 . . 2 . . 3 . . 6 . . 2 . . 1 . Terminals 52 | . 8 2 5 4 8 8 . 4 . . 5 . . 3 3 2 . . Fabricators 1 | . . . . . . . . 1 . . . . . . . . . . Repair Stations 4 | . . . . . . . . . . . . 2 . 2 . . . . Recycling Units 8 | . . . . . . . . 2 . . 3 . . 2 . . 1 . Scanalyzers 8 | . . . 1 2 . . . 3 . . . . . . 2 . . . Garrison Access 1 | . . . . . . . . . . . . . . . . . 1 . Terminal Hacks 27 | . 5 . 1 3 4 5 1 2 6 . . . . . . . . . Record 5 | . . . . . . . . . 5 . . . . . . . . . Robot Analysis 3 | . 2 . . . 1 . . . . . . . . . . . . . Prototype ID Bank 1 | . 1 . . . . . . . . . . . . . . . . . Open Door 3 | . . . . . 2 . . . 1 . . . . . . . . . Terminal Index 1 | . . . . . . . . 1 . . . . . . . . . . Unreport Threat 2 | . . . . 2 . . . . . . . . . . . . . . Maintenance Status 1 | . . . . . . 1 . . . . . . . . . . . . Hauler Manifests 1 | . 1 . . . . . . . . . . . . . . . . . Registered Components 1 | . 1 . . . . . . . . . . . . . . . . . Registered Prototypes 1 | . . . 1 . . . . . . . . . . . . . . . Zone Layout 7 | . . . . 1 1 4 . 1 . . . . . . . . . . Proto ID Catalog 1 | . . . . . . . 1 . . . . . . . . . . . Fabricator Hacks 1 | . . . . . . . . 1 . . . . . . . . . . Network Status 1 | . . . . . . . . 1 . . . . . . . . . . Repair Station Hacks 1 | . . . . . . . . . . . . . . 1 . . . . Refit 1 | . . . . . . . . . . . . . . 1 . . . . Recycling Unit Hacks . | . . . . . . . . . . . . . . . . . . . Scanalyzer 2 | . . . 1 1 . . . . . . . . . . . . . . Retrieve Study 2 | . . . 1 1 . . . . . . . . . . . . . . Garrison Access Hacks 1 | . . . . . . . . . . . . . . . . . 1 . Unlock Access 1 | . . . . . . . . . . . . . . . . . 1 . Unauthorized Hacks 4 | . . . . . . . . 1 . . 3 . . . . . . . Terminals . | . . . . . . . . . . . . . . . . . . . Fabricators . | . . . . . . . . . . . . . . . . . . . Repair Stations . | . . . . . . . . . . . . . . . . . . . Recycling Units 4 | . . . . . . . . 1 . . 3 . . . . . . . Fedlink 4 | . . . . . . . . 1 . . 3 . . . . . . . Scanalyzers . | . . . . . . . . . . . . . . . . . . . Garrison Access . | . . . . . . . . . . . . . . . . . . . Data Cores Recovered 1 | . . . . . 1 . . . . . . . . . . . . . Used 1 | . . . . . 1 . . . . . . . . . . . . . Hacking Detections 27 | . 3 1 2 2 3 3 . 2 . . 2 1 . 3 3 1 1 . Full Trace Events 7 | . . 1 1 1 . . . . . . 1 . . 2 . 1 . . Feedback Events 1 | . . . 1 . . . . . . . . . . . . . . . Corruption 1 | . . . 1 . . . . . . . . . . . . . . . Feedback Blocked . | . . . . . . . . . . . . . . . . . . . Robot Schematics Acquired . | . . . . . . . . . . . . . . . . . . . Robots Built . | . . . . . . . . . . . . . . . . . . . Authchips . | . . . . . . . . . . . . . . . . . . . Time . | . . . . . . . . . . . . . . . . . . . Total Robot Build Rating . | . . . . . . . . . . . . . . . . . . . Part Schematics Acquired . | . . . . . . . . . . . . . . . . . . . Parts Built . | . . . . . . . . . . . . . . . . . . . Authchips . | . . . . . . . . . . . . . . . . . . . Time . | . . . . . . . . . . . . . . . . . . . Total Part Build Rating . | . . . . . . . . . . . . . . . . . . . Part Studies Acquired 2 | . . . 1 1 . . . . . . . . . . . . . . Parts Repaired . | . . . . . . . . . . . . . . . . . . . Time . | . . . . . . . . . . . . . . . . . . . Parts Recycled . | . . . . . . . . . . . . . . . . . . . Recycled Matter . | . . . . . . . . . . . . . . . . . . . Retrieved Matter . | . . . . . . . . . . . . . . . . . . . Retrieved Components . | . . . . . . . . . . . . . . . . . . . Parts Scanalyzed . | . . . . . . . . . . . . . . . . . . . Part Schematics Acquired . | . . . . . . . . . . . . . . . . . . . Parts Damaged . | . . . . . . . . . . . . . . . . . . . Bothacking | -11 -10 -10 -9 -8 -8 -8 -8 -6 -6 -6 -5 -4 -4 -4 -3 -2 -1 -1 ------------ Run | Yrd Mat Min Mat Mat Sto Rec Scr Fac Low Low Fac Fac Was Fac Res Res Acc Gar Used RIF Installer . | . . . . . . . . . . . . . . . . . . . Robots Hacked 3 | . . . . . . . . 2 . . 1 . . . . . . . Non-combat 3 | . . . . . . . . 2 . . 1 . . . . . . . Combat . | . . . . . . . . . . . . . . . . . . . Robot Hacks Applied 3 | . . . . . . . . 2 . . 1 . . . . . . . no_distress 1 | . . . . . . . . . . . 1 . . . . . . . find_chute 1 | . . . . . . . . 1 . . . . . . . . . . find_recycling 1 | . . . . . . . . 1 . . . . . . . . . . Relay Couplers Released . | . . . . . . . . . . . . . . . . . . . Fabnet Peak Effective % . | . . . . . . . . . . . . . . . . . . . Robots Rewired 2 | . . . . 1 . . . . . . 1 . . . . . . . Allies Hacked . | . . . . . . . . . . . . . . . . . . . Hacks Repelled . | . . . . . . . . . . . . . . . . . . . Allies | -11 -10 -10 -9 -8 -8 -8 -8 -6 -6 -6 -5 -4 -4 -4 -3 -2 -1 -1 -------- Run | Yrd Mat Min Mat Mat Sto Rec Scr Fac Low Low Fac Fac Was Fac Res Res Acc Gar Total Allies 2 | . . . . 1 . . . . . . 1 . . . . . . . Largest Group 1 | . . . . 1 . . . . . . 1 . . . . . . . Highest-Rated Group 29 | . . . . 12 . . . . . . 29 . . . . . . . Highest-Rated Ally 29 | . . . . 12 . . . . . . 29 . . . . . . . Initial UFD Resources 61 | . . . . . . . . 22 32 32 34 53 53 53 55 57 61 61 Total Orders 1 | . . . . . . . . . . . 1 . . . . . . . EXPLORE 1 | . . . . . . . . . . . 1 . . . . . . . Ally Attacks 4 | . . . . . . . . . . . 4 . . . . . . . Total Damage 20 | . . . . . . . . . . . 20 . . . . . . . Kills . | . . . . . . . . . . . . . . . . . . . Allies Corrupted . | . . . . . . . . . . . . . . . . . . . Allies Melted . | . . . . . . . . . . . . . . . . . . . Intel | -11 -10 -10 -9 -8 -8 -8 -8 -6 -6 -6 -5 -4 -4 -4 -3 -2 -1 -1 ------- Run | Yrd Mat Min Mat Mat Sto Rec Scr Fac Low Low Fac Fac Was Fac Res Res Acc Gar Active Infowar (turns) 6485 | 46 209 311 . . . . . 1175 848 159 1859 180 591 595 183 134 51 144 Sensors 391 | . . . . . . . . . . . 391 . . . . . . . Terrain 1664 | . . . . . . . . . . . 1417 . . . . 110 51 86 Seismic 5372 | 46 209 311 . . . . . 984 848 159 1132 175 509 551 177 134 51 86 Machine Analysis 191 | . . . . . . . . 191 . . . . . . . . . . Jamming 1462 | . . . . . . . . . . . . 5 411 595 183 73 51 144 ECM 361 | . . . . . . . . . . . . . . . 32 134 51 144 Robot Analysis Total 3 | . 2 . . . 1 . . . . . . . . . . . . . Derelict Logs Recovered 1 | . . . . . . . . . 1 . . . . . . . . . Drone Launches 2 | . . . . . . . . . . . 2 . . . . . . . Drone Recoveries . | . . . . . . . . . . . . . . . . . . . Exploration | -11 -10 -10 -9 -8 -8 -8 -8 -6 -6 -6 -5 -4 -4 -4 -3 -2 -1 -1 ------------- Run | Yrd Mat Min Mat Mat Sto Rec Scr Fac Low Low Fac Fac Was Fac Res Res Acc Gar Turns Passed 12932 | 151 209 512 1140 802 446 557 1921 1513 848 159 2359 238 651 792 196 134 51 253 Spaces Moved 6598 | 61 105 178 465 294 182 362 1289 733 452 93 613 92 273 490 332 236 85 263 Core 273 | 2 . . 2 . . . . . . . 12 92 25 82 . . . 58 Treads 4719 | 59 105 178 236 283 141 362 1289 733 452 93 315 . 248 225 . . . . Legs 131 | . . . . . . . . . . . 84 . . 41 . . . 6 Wheels 288 | . . . 227 11 41 . . . . . . . . 9 . . . . Hover 229 | . . . . . . . . . . . 202 . . . . . . 27 Flight 958 | . . . . . . . . . . . . . . 133 332 236 85 172 Fastest Speed 27 | 50 160 240 140 130 130 145 145 150 156 156 50 50 50 33 30 27 27 30 Average Speed 139 | 156 198 240 168 157 146 145 146 153 156 156 160 97 200 116 30 27 27 60 Slowest Speed 900 | 160 240 240 900 208 305 145 151 233 156 156 260 200 240 280 30 27 30 196 Overloaded Moves . | . . . . . . . . . . . . . . . . . . . Propulsion Burnouts . | . . . . . . . . . . . . . . . . . . . Robots Hopped 8 | . . . . . . . . . . . . . . 4 . . . 4 Potential Cave-ins 9 | . . . . . . . . 9 . . . . . . . . . . Cave-ins Triggered 2 | . . . . . . . . 2 . . . . . . . . . . Exploration Rate (%) 32 | 5 21 27 40 31 37 85 90 14 69 21 21 2 87 19 11 11 3 31 Regions Visited 18 Branch Regions 6 Pre-discovered Areas 2 | . . . . . . . . . 1 . 1 . . . . . . . Known Exits Taken 2 | . . . . . . . . . . . . . . 1 . . 1 . Unknown Exits Taken 14 | 1 1 1 1 1 1 1 1 1 1 1 1 . . . 1 1 . . Scrap Searched 13 | . . 1 . . . . 11 . . 1 . . . . . . . . Spaces Dug 43 | . . . . . . 1 . 24 . . 6 . . 3 3 5 1 . Terrain Destroyed 567 | . . 41 34 11 7 2 . 77 1 . 269 . . 55 3 5 1 61 Melee 14 | . . . . . . . . . . . 2 . . 3 3 5 1 . Projectile 65 | . . . . . 5 2 . 32 1 . 16 . . 9 . . . . AOE 488 | . . 41 34 11 2 . . 45 . . 251 . . 43 . . . 61 Terrain Rammed . | . . . . . . . . . . . . . . . . . . . Walls Destroyed . | . . . . . . . . . . . . . . . . . . . Machines Disabled . | . . . . . . . . . . . . . . . . . . . Actions | -11 -10 -10 -9 -8 -8 -8 -8 -6 -6 -6 -5 -4 -4 -4 -3 -2 -1 -1 --------- Run | Yrd Mat Min Mat Mat Sto Rec Scr Fac Low Low Fac Fac Was Fac Res Res Acc Gar Total 9546 | 87 107 225 681 514 318 389 1322 1041 588 107 1823 239 356 611 406 290 102 340 Wait 2061 | 2 . 10 87 90 78 23 2 232 133 15 1053 138 34 40 57 40 9 18 Move 6565 | 60 104 177 464 293 181 361 1288 731 451 92 612 92 272 483 331 235 85 253 Hop 5 | . . . . . . . . . . . . . . 2 . . . 3 Pick Up 91 | 4 1 12 16 14 8 . 10 8 . . 7 2 2 5 . 2 . . Fast Attach 124 | 7 . 2 10 10 7 . 4 3 . . 21 1 23 17 5 5 3 6 Attach 58 | . . 1 10 9 3 . . 6 . . 13 2 3 5 1 1 . 4 Detach 8 | . . . 1 . . . . . . . 2 . 2 2 1 . . . Swap 46 | 1 1 1 6 8 3 . 3 8 1 . 12 . . 2 . . . . Drop 91 | . 1 . 11 19 9 . 15 4 . . 13 1 9 6 . . . 3 Fire 401 | 13 . 22 76 66 29 3 . 48 3 . 80 3 7 41 . . . 10 Melee 35 | . . . . . . . . . . . 7 . . 5 11 7 5 . Ram . | . . . . . . . . . . . . . . . . . . . Kick 1 | . . . . . . . . . . . . . . . . . . 1 Crush . | . . . . . . . . . . . . . . . . . . . Escape Stasis 46 | . . . . . . . . 1 . . . . . 3 . . . 42 Rewire 13 | . . . . 5 . 2 . . . . 3 . 3 . . . . . Trap 1 | . . . . . . . . . . . . . 1 . . . . . Miscellaneous . | . . . . . . . . . . . . . . . . . . . Route ------- -11/Scrapyard -10/Materials -10/Mines -9/Materials -8/Materials -8/Storage -8/Recycling (discovered 2 exits: *Fac / *Scr) -8/Scraptown (discovered 2 exits: *Fac x2) -6/Factory (discovered 2 exits: *Fac / *Low) -6/Lower Caves -6/Lower Caves -5/Factory (discovered 2 exits: *Fac / [*Ext]) -4/Factory -4/Waste -4/Factory -3/Research -2/Research -1/Access -1/Garrison (discovered 1 exit: [*Acc]) History --------- Turn | Location | Event 23 | -11/Scrapyard | Discovered new exit (range 15) 152 | -11/Scrapyard | Entered Materials 276 | -10/Materials | Discovered new exit (range 14) 301 | -10/Materials | Build established: Mutant 361 | -10/Materials | Entered Mines 538 | -10/Mines | Deemed a non-threat by the Exiles lab entrance 809 | -10/Mines | Discovered new exit (range 15) 873 | -10/Mines | Entered Materials 873 | -9/Materials | Evolved 2 slots: Propulsion x1, Utility x1 1018 | -9/Materials | Destroyed 7 combat bots 1130 | -9/Materials | Lost 4 parts (1p3n) 1136 | -9/Materials | Destroyed 7 combat bots 1450 | -9/Materials | Build established: Scavenger-Mutant 1566 | -9/Materials | Core integrity fell below 50% 1599 | -9/Materials | Lost 3 parts (1u2w) 1673 | -9/Materials | First assault squad dispatched 1954 | -9/Materials | Discovered new exit (range 15) 2013 | -9/Materials | Entered another Materials area 2013 | -8/Materials | Evolved 2 slots: Propulsion x1, Weapon x1 2228 | -8/Materials | Central database locked down 2674 | -8/Materials | Discovered new exit (range 20) 2766 | -8/Materials | Core integrity fell below 50% 2815 | -8/Materials | Entered Storage 2818 | -8/Storage | Destroyed 8 combat bots 2832 | -8/Storage | Lost 11 parts (2p3n1u5w) 3067 | -8/Storage | Destroyed 7 combat bots 3256 | -8/Storage | Used back door to open Recycling access 3256 | -8/Storage | Discovered new exit (range 4) 3261 | -8/Storage | Entered Recycling 3446 | -8/Recycling | Build established: Gunner 3554 | -8/Recycling | Discovered new exit (range 7) 3779 | -8/Recycling | Scanned before Scraplab entrance 3800 | -8/Recycling | Entered Scraplab 3814 | -8/Recycling | Discovered new exit (range 3) 3818 | -8/Recycling | Entered Scraptown 3818 | -8/Scraptown | System corruption cleaned by C-Scrubber 3979 | -8/Scraptown | Heard Great Nut preacher, LISTEN AND RECITE! 4124 | -8/Scraptown | Discovered new exit (range 7) 4244 | -8/Scraptown | Visited Spacefarers 4314 | -8/Scraptown | Visited Bundlers 4422 | -8/Scraptown | Visited Cyclists 4745 | -8/Scraptown | Visited Fellowship of the Rings 4805 | -8/Scraptown | Visited The Evicted 4839 | -8/Scraptown | Visited CPS Storage 4879 | -8/Scraptown | Visited UFD Registry 4879 | -8/Scraptown | Registered with UFD as "Bullettank" 4927 | -8/Scraptown | Visited Science Testing Area 4955 | -8/Scraptown | Visited Junk Repository 5052 | -8/Scraptown | Visited Junk Repository 5090 | -8/Scraptown | Visited DA-N13 Charitable Foundation 5104 | -8/Scraptown | Found DCF Scrap (30 items) 5187 | -8/Scraptown | Visited Scrapoid Pod Storage 5206 | -8/Scraptown | Visited Science Guys 5446 | -8/Scraptown | Visited A0-MCA Data Center 5455 | -8/Scraptown | Given a B- rating by A0-MCA 5484 | -8/Scraptown | Visited Observation Area 5647 | -8/Scraptown | Met Optimus 5647 | -8/Scraptown | Accepted into 0bPrime 5731 | -8/Scraptown | Discovered new exit (range 3) 5739 | -8/Scraptown | Entered Factory 5739 | -6/Factory | Evolved 4 slots: Power x1, Propulsion x1, Utility x2 5877 | -6/Factory | Discovered new exit (range 9) 6429 | -6/Factory | Discovered new exit (range 13) 7025 | -6/Factory | Crushed by falling debris 7070 | -6/Factory | Loaded intel: 8 recycling unit locations 7113 | -6/Factory | Crushed by falling debris 7113 | -6/Factory | System corruption reached 10% 7252 | -6/Factory | Entered Lower Caves 7413 | -6/Lower Caves | Learned Factory stockpile data 7566 | -6/Lower Caves | Entered an active Warlord outpost 7581 | -6/Lower Caves | Learned Research trap positions 7581 | -6/Lower Caves | Learned Research stockpile data 8080 | -6/Lower Caves | Discovered new exit (range 13) 8100 | -6/Lower Caves | Entered another Lower Caves area 8245 | -6/Lower Caves | Discovered new exit (range 8) 8259 | -6/Lower Caves | Entered Factory 8259 | -5/Factory | Evolved 2 slots: Utility x2 9516 | -5/Factory | Build established: Tank 9517 | -5/Factory | Loaded intel: 8 recycling unit locations 9517 | -5/Factory | Learned location of Protoforge (-2) 9874 | -5/Factory | Discovered new exit (range 15) 10031 | -5/Factory | Lost 5 parts (2n3u) 10142 | -5/Factory | Lost 7 parts (2p1u4w) 10206 | -5/Factory | Found Launcher Loader 10403 | -5/Factory | Build established: Mutant 10587 | -5/Factory | Discovered new exit (range 13) 10612 | -5/Factory | Released all parts (9) 10618 | -5/Factory | Entered another Factory area 10618 | -4/Factory | Evolved 2 slots: Utility x2 10619 | -4/Factory | Identified exit to Research 10642 | -4/Factory | Lost 5 parts (1p3n1w) 10856 | -4/Factory | Sucked down chute 10856 | -4/Factory | Entered Waste 10856 | -4/Waste | The area was eerily silent 10880 | -4/Waste | Found Damper Plating 11296 | -4/Waste | A Compactor rumbled back to life 11303 | -4/Waste | Spotted C-40 Crusher 11310 | -4/Waste | Crushed by Compactor (0 parts destroyed, 1 dropped) 11329 | -4/Waste | Crushed by Compactor (1 part destroyed, 2 dropped) 11364 | -4/Waste | Crushed by Compactor (1 part destroyed) 11368 | -4/Waste | Destroyed C-40 Crusher 11405 | -4/Waste | Found Damper Plating 11442 | -4/Waste | Discovered new exit (range 13) 11507 | -4/Waste | Entered Factory 11700 | -4/Factory | Build established: Scavenger-Tank 11854 | -4/Factory | Lost 5 parts (1p1n2u1w) 12126 | -4/Factory | Released all parts (5) 12155 | -4/Factory | Lost 6 parts (1p2n1u2w) 12204 | -4/Factory | Core integrity fell below 50% 12297 | -4/Factory | Discovered exit to Research (range 5) 12299 | -4/Factory | Entered Research 12299 | -3/Research | Evolved 2 slots: Propulsion x1, Utility x1 12300 | -3/Research | Loaded intel: 95 trap records 12487 | -3/Research | Discovered new exit (range 7) 12495 | -3/Research | Entered another Research area 12495 | -2/Research | Evolved 2 slots: Propulsion x1, Utility x1 12592 | -2/Research | Spotted B-90 Cyclops 12623 | -2/Research | Discovered new exit (range 6) 12629 | -2/Research | Entered Access 12629 | -1/Access | Evolved 2 slots: Utility x2 12680 | -1/Access | Identified exit to Garrison 12680 | -1/Access | Entered Garrison 12755 | -1/Garrison | Triggered checkpoint 12755 | -1/Garrison | Triggered checkpoint 12788 | -1/Garrison | Triggered checkpoint 12788 | -1/Garrison | Lost 5 parts (2n1u2w) 12824 | -1/Garrison | Spotted B-99 Colossus 12845 | -1/Garrison | Discovered new exit (range 15) 12853 | -1/Garrison | Attempted to access garrison exit controls, blocked by remote lockdown 12868 | -1/Garrison | Released all parts (5) 12875 | -1/Garrison | Core integrity fell below 50% 12896 | -1/Garrison | Triggered checkpoint 12898 | -1/Garrison | Core integrity fell below 20% 12933 | -1/Garrison | Destroyed by Y-72 Warden with Railgun Last Messages --------------- 12901_ Slug penetrates Wall. 12901_ S-43 Plague destroyed. 12902_ Acquired Hvy. Machine Gun. 12904_ Slug penetrates Wall. 12904_ Penetrated by Slug. 12904_ Slug penetrates Wall. 12904_ Penetrated by Slug. 12904_ Slug penetrates Wall. 12904_ Acquired Xenon Bombardment Thruster. 12906_ Acquired 26 matter. 12906_ Acquired 4 matter. 12908_ B-99 Colossus activates siege mode. 12908_ Knocked back. 12908_ Penetrated by Slug. 12908_ Hvy. Machine Gun destroyed. 12908_ Penetrated by Slug. 12908_ Slug penetrates S-43 Plague. 12908_ Penetrated by Slug. 12908_ Slug penetrates S-43 Plague. 12919_ Xenon Bombardment Thruster destroyed. Map ----- +----------------------------------------------------+ | ?????????????????????????????????????????????????? | | ?????????????????????????????????????????????????? | | ?????????????????????????????????????????????????? | | ?????????????????????????????????????????????????? | | ?????????????????????????????????????????????????? | | ?????????????????????????????????????????????????? | | ?????????????????????????????????????????????????? | | ?????????????????????????????????????????????????? | | ?????????????????????????????????????????????????? | | ?????????????????????????????????????????????????? | | ?????????????????????????????????????????????????? | | ?????????????????????????????????????????????????? | | ?????????????????????????????????????????????????? | | ?????????????????????????????????????????????????? | | ?????????????????????????????????????????????????? | | ?????????????????????????????????????????????????? | | ?????????????????????????###?????????????????????? | | ????????????????????????# ?????????????????????? | | ????????????????????????# ?????????????????????? | | ????????????????????????# #?????????????????????? | | ????????????????????????# #?????????????????????? | | ????????????????????????# #?????????????????????? | | ??????????????????????### #?????????????????????? | | ??????????????????????#Y# #?????????????????????? | | ??????????????????????? #?????????????????????? | | ????????????????????????#@ #?????????????????????? | | ????????????????????????# #?????????????????????? | | ????????????????????????# #?????????????????????? | | ????????????????????????# #?????????????????????? | | ?????????????############ ###########???????????? | | ?????????????# ????????? | | ?????????????# ????????? | | ?????????????# #T####### ##########//#?????????? | | ?????????????# ????????# #?????????????????????? | | ?????????????# ????????# #?????????????????????? | | ?????????????# ????????# #?????????????????????? | | ?????????????# ????????# #?????????????????????? | | ?????????????# ????????# #?????????????????????? | | ??######""""## ##??????# #?????????????????????? | | ?## ######## #?????????????????????? | | ? #?????????????????????? | | ?? #?????????????????????? | | ??# ?# ## ###########?????????????????????? | | ### ## ## #???????????????????????????????? | | # "???????????????????????????????? | | # "???????????????????????????????? | | # "???????????????????????????????? | | ? "???????????????????????????????? | | ?## #" ## #???????????????????????????????? | | ## "# #???????????????????????????????? | +----------------------------------------------------+ Best States ------------- Heat Dissipation 111 Coolant Potential 100 Energy Generation 41 Energy Capacity 575 Matter Stores 300 Matter Capacity 300 Sight Range 16 Robot Scan Range 15 Terrain Scan Range 20 Terrain Scan Density 410 ECM Strength 1 Jamming Range 16 Armor Coverage 3200 Resistance: KI 20 Resistance: EM 90 Weapon Shielding 33 Evasion (%) 76 Targeting Accuracy 8 Core Analysis 6 Recoil Reduction 5 Particle Charging 25 Defensive Hacking 10 Item Schematics ----------------- None Robot Schematics ------------------ None Fabricated ------------ Nothing Repaired ---------- Nothing Studied --------- Lgt. Treads | -9/Materials | Hacked Deuterium Engine | -8/Materials | Hacked Alien Tech Used ----------------- None Achievements -------------- None Challenges ------------ None Game ------ Seed ColdScrapoidMediator Manual? 0 Play Time 01:45:31 Cumulative 279.9 hours Start 2026.08.22 @ 20:28:14 End 2026.08.23 @ 14:44:37 Sessions 5 Manual Loads 0 Difficulty Rogue Special Mode None Game No. 355 Rogue 355 Adventurer 0 Explorer 0 Win Type - Total 7 Types 6/0/0/1/0/0/0/0/0/0 Lore% 80 Gallery% 67 Achievement% 56 Wizard Run 0 Options --------- Layout 2 ASCII 0 Keyboard 0 Movement Mouse Keybinds 0 Fullscreen 1 Font 24/Smallcaps Map View 50x44 Zoom Use 0% Tactical HUD 1 Map Filters NONE Filters NONE Steam 1 RUN: 3b6be5ce-1302-4b2e-9332-0fa57e6ac4d0